[Event "Allsvenskan 24-25"]
[Site "Linköping, Sweden"]
[Date "2025.02.02"]
[Round "7.6"]
[White "Thornqvist, Ofelia"]
[Black "Tornqvist, Alexander"]
[Result "1/2-1/2"]
[TimeControl "90 min/40 moves + 30 min + 30 sec from move 1"]
[WhiteElo "1873"]
[BlackElo "1693"]

1. d4 {[%clk 01:30:59]} Nf6 {[%clk 01:30:51]} {[%emt 00:00:09]} 2. Bf4 {[%clk
01:31:23]} {[%emt 00:00:06]} c5 {[%clk 01:31:07]} {[%emt 00:00:14]} 3. e3
{[%clk 01:31:01]} {[%emt 00:00:52]} Qb6 {[%clk 01:26:37]} {[%emt 00:04:59]} 4.
Nc3 {[%clk 01:29:11]} {[%emt 00:02:21]} cxd4 {[%clk 01:19:39]} {[%emt
00:07:29]} 5. exd4 {[%clk 01:29:27]} {[%emt 00:00:14]} Qxb2 {[%clk 01:19:49]}
{[%emt 00:00:20]} 6. Nb5 {[%clk 01:27:11]} {[%emt 00:02:46]} Na6 {[%clk
01:19:53]} {[%emt 00:00:25]} 7. Qb1 {[%clk 01:14:45]} {[%emt 00:12:56]} Qxb1+
{[%clk 01:19:46]} {[%emt 00:00:37]} 8. Rxb1 {[%clk 01:14:38]} {[%emt 00:00:37]}
Nh5 {[%clk 01:09:13]} {[%emt 00:11:02]} 9. Bd2 {[%clk 01:12:30]} {[%emt
00:02:38]} d5 {[%clk 01:05:00]} {[%emt 00:04:43]} 10. Nf3 {[%clk 01:11:14]}
{[%emt 00:01:47]} e6 {[%clk 00:58:12]} {[%emt 00:07:17]} 11. Bd3 {[%clk
01:08:35]} {[%emt 00:03:10]} Be7 {[%clk 00:54:40]} {[%emt 00:04:01]} 12. O-O
{[%clk 01:04:31]} {[%emt 00:04:35]} O-O {[%clk 00:54:09]} {[%emt 00:01:01]} 13.
Rfe1 {[%clk 01:01:12]} {[%emt 00:03:50]} Rd8 {[%clk 00:47:40]} {[%emt
00:06:58]} 14. Ne5 {[%clk 00:53:48]} {[%emt 00:07:54]} Bd7 {[%clk 00:42:19]}
{[%emt 00:05:51]} 15. Ba5 {[%clk 00:42:56]} {[%emt 00:11:22]} b6 {[%clk
00:41:15]} {[%emt 00:01:34]} 16. Bd2 {[%clk 00:39:58]} {[%emt 00:03:28]} Nf6
{[%clk 00:28:46]} {[%emt 00:12:59]} 17. h3 {[%clk 00:37:55]} {[%emt 00:02:34]}
Bxb5 {[%clk 00:26:51]} {[%emt 00:02:25]} 18. Bxb5 {[%clk 00:38:08]} {[%emt
00:00:17]} Nc7 {[%clk 00:26:41]} {[%emt 00:00:39]} 19. Nc6 {[%clk 00:35:03]}
{[%emt 00:03:36]} Rd7 {[%clk 00:24:00]} {[%emt 00:03:12]} 20. Nxe7+ {[%clk
00:29:08]} {[%emt 00:06:25]} Rxe7 {[%clk 00:24:20]} {[%emt 00:00:09]} 21. Bc6
{[%clk 00:29:05]} {[%emt 00:00:32]} Rc8 {[%clk 00:23:41]} {[%emt 00:01:10]} 22.
Bb4 {[%clk 00:26:30]} {[%emt 00:03:05]} Nce8 {[%clk 00:22:14]} {[%emt
00:01:57]} 23. Bxe7 {[%clk 00:25:18]} {[%emt 00:01:42]} Rxc6 {[%clk 00:22:37]}
{[%emt 00:00:07]} 24. Re2 {[%clk 00:18:49]} {[%emt 00:06:59]} Ne4 {[%clk
00:22:46]} {[%emt 00:00:21]} 25. Bb4 {[%clk 00:16:57]} {[%emt 00:02:21]} N8d6
{[%clk 00:21:25]} {[%emt 00:01:52]} 26. f3 {[%clk 00:15:54]} {[%emt 00:01:33]}
Ng3 {[%clk 00:18:43]} {[%emt 00:03:11]} 27. Rf2 {[%clk 00:15:35]} {[%emt
00:00:49]} Ndf5 {[%clk 00:17:55]} {[%emt 00:01:18]} 28. Kh2 {[%clk 00:14:27]}
{[%emt 00:01:38]} h5 {[%clk 00:17:55]} {[%emt 00:00:29]} 29. Be1 {[%clk
00:12:13]} {[%emt 00:02:45]} h4 {[%clk 00:17:46]} {[%emt 00:00:39]} 30. c3
{[%clk 00:09:40]} {[%emt 00:03:03]} Ne3 {[%clk 00:12:56]} {[%emt 00:05:20]} 31.
Rfb2 {[%clk 00:09:06]} {[%emt 00:01:04]} Ngf1+ {[%clk 00:12:50]} {[%emt
00:00:36]} 32. Kg1 {[%clk 00:08:44]} {[%emt 00:00:51]} g5 {[%clk 00:12:40]}
{[%emt 00:00:40]} 33. Rb3 {[%clk 00:07:14]} {[%emt 00:02:00]} f5 {[%clk
00:12:03]} {[%emt 00:01:08]} 34. Kf2 {[%clk 00:04:16]} {[%emt 00:03:26]} f4
{[%clk 00:11:12]} {[%emt 00:01:22]} 35. Ke2 {[%clk 00:03:01]} {[%emt 00:01:45]}
e5 {[%clk 00:11:01]} {[%emt 00:00:41]} 36. dxe5 {[%clk 00:02:22]} {[%emt
00:01:09]} Re6 {[%clk 00:10:22]} {[%emt 00:01:09]} 37. Bxh4 {[%clk 00:01:37]}
{[%emt 00:01:15]} gxh4 {[%clk 00:08:57]} {[%emt 00:01:55]} 38. Rxf1 {[%clk
00:02:01]} {[%emt 00:00:05]} Nxf1 {[%clk 00:09:07]} {[%emt 00:00:20]} 39. Kxf1
{[%clk 00:02:27]} {[%emt 00:00:04]} Rxe5 {[%clk 00:09:15]} {[%emt 00:00:22]} 40.
Rb4 {[%clk 00:02:11]} {[%emt 00:00:46]} Rf5 {[%clk 00:08:23]} {[%emt 00:01:22]}
41. Rd4 {[%clk 00:01:09]} {[%emt 00:01:32]} Kf7 {[%clk 00:05:26]} {[%emt
00:03:27]} 42. Kf2 {[%clk 00:28:59]} {[%emt 00:02:40]} 1/2-1/2

[Event "Allsvenskan 24-25"]
[Site "Linköping, Sweden"]
[Date "2025.02.02"]
[Round "7.7"]
[White "Wiss, Patrik"]
[Black "Pettersson, Borje"]
[Result "0-1"]
[TimeControl "90 min/40 moves + 30 min + 30 sec from move 1"]
[WhiteElo "1717"]
[BlackElo "1909"]

1. e4 {[%emt 00:00:05]} c5 {[%clk 01:30:19]} {[%emt 00:00:37]} 2. c3 {[%clk
01:31:06]} {[%emt 00:00:22]} Nc6 {[%clk 01:28:56]} {[%emt 00:01:53]} 3. d4
{[%clk 01:30:54]} {[%emt 00:00:42]} cxd4 {[%clk 01:29:21]} {[%emt 00:00:05]} 4.
cxd4 {[%clk 01:31:14]} {[%emt 00:00:12]} d5 {[%clk 01:29:33]} {[%emt 00:00:16]}
5. exd5 {[%clk 01:31:00]} {[%emt 00:00:45]} Qxd5 {[%clk 01:29:57]} {[%emt
00:00:06]} 6. Be3 {[%clk 01:30:35]} {[%emt 00:00:56]} e6 {[%clk 01:28:52]}
{[%emt 00:01:34]} 7. a3 {[%clk 01:27:56]} {[%emt 00:03:10]} Nf6 {[%clk
01:24:45]} {[%emt 00:04:37]} 8. Nc3 {[%clk 01:27:43]} {[%emt 00:00:43]} Qd8
{[%clk 01:23:20]} {[%emt 00:01:54]} 9. Nf3 {[%clk 01:23:09]} {[%emt 00:05:04]}
Be7 {[%clk 01:20:36]} {[%emt 00:03:13]} 10. Be2 {[%clk 01:11:07]} {[%emt
00:12:33]} O-O {[%clk 01:19:24]} {[%emt 00:01:42]} 11. O-O {[%clk 01:11:09]}
{[%emt 00:00:28]} a6 {[%clk 01:12:14]} {[%emt 00:07:39]} 12. b4 {[%clk
01:01:40]} {[%emt 00:09:59]} b5 {[%clk 01:06:40]} {[%emt 00:06:04]} 13. Qb3
{[%clk 00:51:25]} {[%emt 00:10:46]} Bb7 {[%clk 00:58:41]} {[%emt 00:08:30]} 14.
Rfd1 {[%clk 00:49:50]} {[%emt 00:02:05]} Nb8 {[%clk 00:48:58]} {[%emt
00:10:13]} 15. Ne5 {[%clk 00:27:51]} {[%emt 00:22:28]} Nd5 {[%clk 00:46:57]}
{[%emt 00:02:30]} 16. Bf3 {[%clk 00:25:37]} {[%emt 00:02:45]} Bf6 {[%clk
00:42:09]} {[%emt 00:05:18]} 17. Nxd5 {[%clk 00:23:36]} {[%emt 00:02:31]} Bxd5
{[%clk 00:41:27]} {[%emt 00:01:12]} 18. Bxd5 {[%clk 00:23:14]} {[%emt
00:00:52]} Qxd5 {[%clk 00:40:41]} {[%emt 00:01:15]} 19. Qxd5 {[%clk 00:23:06]}
{[%emt 00:00:39]} exd5 {[%clk 00:41:07]} {[%emt 00:00:03]} 20. f4 {[%clk
00:19:15]} {[%emt 00:04:23]} a5 {[%clk 00:37:03]} {[%emt 00:04:33]} 21. Bd2
{[%clk 00:16:57]} {[%emt 00:02:48]} a4 {[%clk 00:31:10]} {[%emt 00:06:22]} 22.
Rac1 {[%clk 00:16:40]} {[%emt 00:00:47]} Na6 {[%clk 00:30:06]} {[%emt
00:01:34]} 23. Rc6 {[%clk 00:14:51]} {[%emt 00:02:19]} Rfd8 {[%clk 00:17:38]}
{[%emt 00:12:58]} 24. Kf2 {[%clk 00:11:40]} {[%emt 00:03:42]} Kf8 {[%clk
00:14:08]} {[%emt 00:03:59]} 25. Rb6 {[%clk 00:06:51]} {[%emt 00:05:20]} Bxe5
{[%clk 00:12:03]} {[%emt 00:02:35]} 26. fxe5 {[%clk 00:07:19]} {[%emt
00:00:02]} Rdb8 {[%clk 00:09:34]} {[%emt 00:02:58]} 27. Rd6 {[%clk 00:05:53]}
{[%emt 00:01:56]} Rd8 {[%clk 00:07:23]} {[%emt 00:02:41]} 28. Rb6 {[%clk
00:06:03]} {[%emt 00:00:20]} Nc7 {[%clk 00:07:22]} {[%emt 00:00:31]} 29. Rc1
{[%clk 00:06:18]} {[%emt 00:00:16]} Ne6 {[%clk 00:07:17]} {[%emt 00:00:34]} 30.
Be3 {[%clk 00:06:00]} {[%emt 00:00:47]} Rab8 {[%clk 00:06:09]} {[%emt
00:01:38]} 31. Rcc6 {[%clk 00:04:01]} {[%emt 00:02:29]} Ke8 {[%clk 00:06:03]}
{[%emt 00:00:36]} 32. Rxb8 {[%clk 00:04:14]} {[%emt 00:00:18]} Rxb8 {[%clk
00:06:31]} {[%emt 00:00:02]} 33. Rd6 {[%clk 00:03:19]} {[%emt 00:01:26]} Nc7
{[%clk 00:04:36]} {[%emt 00:02:24]} 34. Kf3 {[%clk 00:02:10]} {[%emt 00:01:39]}
h6 {[%clk 00:04:28]} {[%emt 00:00:38]} 35. h4 {[%clk 00:02:29]} {[%emt
00:00:11]} Ke7 {[%clk 00:04:36]} {[%emt 00:00:22]} 36. g4 {[%clk 00:02:45]}
{[%emt 00:00:15]} Rc8 {[%clk 00:03:24]} {[%emt 00:01:41]} 37. g5 {[%clk
00:03:01]} {[%emt 00:00:15]} hxg5 {[%clk 00:03:08]} {[%emt 00:00:46]} 38. Bxg5+
{[%clk 00:02:48]} {[%emt 00:00:43]} f6 {[%clk 00:03:24]} {[%emt 00:00:13]} 39.
Bxf6+ {[%clk 00:02:50]} {[%emt 00:00:28]} gxf6 {[%clk 00:03:40]} {[%emt
00:00:15]} 40. Rxf6 {[%clk 00:03:18]} {[%emt 00:00:01]} Rf8 {[%clk 00:03:11]}
{[%emt 00:00:58]} 41. Rxf8 {[%clk 00:03:32]} {[%emt 00:00:16]} Kxf8 {[%clk
00:03:34]} {[%emt 00:00:07]} 42. Kg4 {[%clk 00:01:38]} {[%emt 00:02:25]} Ne6
{[%clk 00:02:51]} {[%emt 00:01:11]} 43. Kf5 {[%clk 00:01:50]} {[%emt 00:00:18]}
Kf7 {[%clk 00:02:03]} {[%emt 00:01:18]} 44. h5 {[%clk 00:02:09]} {[%emt
00:00:12]} Nxd4+ {[%clk 00:02:17]} {[%emt 00:00:15]} 45. Kg5 {[%clk 00:02:05]}
{[%emt 00:00:35]} Ne6+ {[%clk 00:02:29]} {[%emt 00:00:18]} 46. Kf5 {[%clk
00:02:14]} {[%emt 00:00:22]} Ng7+ {[%clk 00:02:41]} {[%emt 00:00:18]} 47. Kg5
{[%clk 00:02:03]} {[%emt 00:00:41]} Nxh5 {[%clk 00:02:53]} {[%emt 00:00:18]} 48.
Kxh5 {[%clk 00:02:29]} {[%emt 00:00:04]} Ke6 {[%clk 00:03:13]} {[%emt
00:00:09]} 49. Kg4 {[%clk 00:02:47]} {[%emt 00:00:13]} Kxe5 {[%clk 00:03:25]}
{[%emt 00:00:17]} 50. Kf3 {[%clk 00:03:14]} {[%emt 00:00:03]} Kd4 {[%clk
00:03:35]} {[%emt 00:00:20]} 51. Ke2 {[%clk 00:03:39]} {[%emt 00:00:07]} Kc3
{[%clk 00:03:53]} {[%emt 00:00:12]} 0-1